Cogmind - Beta 11 X6 @@@ ROGUE MODE // 2021.08.01 @ 02:11:45 Player: Runia Result: Destroyed by G-73 Enforcer with Phase Gun Performance ------------- Evolutions (8) 4000 Regions Visited (26) 5200 Robots Destroyed (320) 1600 Value Destroyed (16205) 16205 Prototype IDs (42) 840 Alien Tech Used (0) 0 Bonus (5437) 5437 TOTAL SCORE: 33282 Bonus ------- High Alert Combat Kills 499 Follower Combat Kills 1417 Entered Garrisons 1200 Used RIF Installer 3000 Met Zhirov 300 Met R17 at Cetus 500 Hacked Protovariant 500 Scanned by Researcher 500 Friendly Fire -2479 Cogmind --------- Core Integrity 0/1450 Matter 300/300 Energy 98/100 System Corruption 53% Temperature Cool (0) Movement Core (50) Location -2/Research Parts ------- > --- POWER (2) -------- (None) > --- PROPULSION (6) --- (None) > --- UTILITY (12) ----- (None) > --- WEAPON (3) ------- Nanosword > --- INVENTORY (5) ---- Relay Coupler [Sentry] (18) Improved Remote Datajack Peak State ------------ > --- POWER ------------ Compact Particle Reactor Compact Particle Reactor > --- PROPULSION ------- Advanced Heavy Treads Advanced Heavy Treads Biometal Heavy Treads > --- UTILITY ---------- Advanced Power Amplifier Huge Storage Unit Improved Energy Well Advanced Energy Well Advanced Visual Processing Unit Experimental Sensor Array Advanced Target Analyzer Light Regenerative Plating Heavy Regenerative Plating Experimental Shield Generator Advanced Hacking Suite > --- WEAPON ----------- Plasma Lance Plasma Lance Enhanced Force Lance > --- INVENTORY -------- Reinforced Quantum Reactor Advanced Heavy Treads Myomer Leg Myomer Leg Myomer Leg Myomer Leg Myomer Leg Myomer Leg Advanced Myomer Leg Advanced Myomer Leg Biometal Leg Biometal Leg Advanced Phase Shifter SHELL Armor AEGIS Remote Shield Relay Coupler [Sentry] Relay Coupler [Sentry] Railgun Containment Facilitator Advanced Datajack Improved Remote Datajack Advanced Remote Datajack [Rating: 190] Favorites ----------- Power Light Antimatter Reactor Engine Improved Deuterium Engine Reactor Light Antimatter Reactor Propulsion Light Treads Treads Light Treads Leg Carbon-fiber Leg Wheel Centrium Wheel Hover Unit Antigrav System Flight Unit Xenon Bombardment Thruster Utility Huge Storage Unit Device Cooling System Storage Huge Storage Unit Processor Advanced Targeting Computer Hackware Relay Coupler [Sentry] Protection Hardened Heavy Armor Plating Weapon Gauss Rifle Energy Gun Spread Laser Energy Cannon Advanced Beam Cannon Ballistic Gun Gauss Rifle Ballistic Cannon Tri-rail Accelerator Launcher Grenade Launcher Special Weapon Remote Datajack Slashing Weapon Great Axe Piercing Weapon Plasma Lance Special Melee Weapon Advanced Datajack Build | -11 -10 -10 -9 -9 -8 -8 -7 -7 -7 -7 -6 -6 -6 -6 -6 -6 -5 -5 -5 -5 -4 -4 -4 -3 -3 -2 ------- Run | Scr Mat Min Mat Min Mat Gar Fac Gar Fac Gar Fac Gar Ext Cet Arc Hub Fac Was Fac Gar Fac Gar Fac Res Tes Res Slots Evolved 16 | . . . 2 . 2 . 2 . . . 2 . . . . . 2 . . . 2 . . 2 . 2 Power 1 | . . . . . . . . . . . . . . . . . . . . . . . . 1 . . Propulsion 4 | . . . 1 . 1 . . . . . 2 . . . . . . . . . . . . . . . Utility 10 | . . . 1 . . . 2 . . . . . . . . . 2 . . . 2 . . 1 . 2 Weapon 1 | . . . . . 1 . . . . . . . . . . . . . . . . . . . . . Parts Attached 509 | 2 11 1 20 3 6 12 3 9 13 20 1 41 37 27 3 6 10 7 4 17 2 30 91 35 51 47 Power 32 | . 1 . 3 1 . . 1 . . 1 . 1 1 2 . 1 . . . . . 3 3 6 2 6 Engine 10 | . 1 . 3 1 . . 1 . . 1 . 1 1 1 . . . . . . . . . . . . Core . | . . . . . . . . . . . . . . . . . . . . . . . . . . . Reactor 22 | . . . . . . . . . . . . . . 1 . 1 . . . . . 3 3 6 2 6 Propulsion 114 | 2 2 . 2 . 2 5 . 2 1 3 . 9 10 6 . 1 2 1 . . . 4 25 10 8 19 Treads 42 | 2 2 . 2 . 2 5 . 2 1 3 . 1 . 2 . . 1 1 . . . 3 1 4 4 6 Leg 63 | . . . . . . . . . . . . 8 10 4 . 1 . . . . . . 19 4 4 13 Wheel 6 | . . . . . . . . . . . . . . . . . 1 . . . . 1 3 1 . . Hover 2 | . . . . . . . . . . . . . . . . . . . . . . . 2 . . . Flight 1 | . . . . . . . . . . . . . . . . . . . . . . . . 1 . . Utility 153 | . 4 . 8 . . 1 2 . 4 5 1 5 6 6 2 3 4 4 3 5 2 7 31 14 23 13 Device 69 | . 2 . 5 . . 1 . . 1 . . . 1 3 . . 1 3 2 2 . 2 16 9 15 6 Storage 13 | . 2 . 1 . . . . . . . . . . . . . . . . . 1 . 4 2 1 2 Processor 10 | . . . 2 . . . . . . . . . . . . 1 1 1 . . . . 4 . 1 . Hackware 33 | . . . . . . . 1 . 2 4 1 3 3 . . 2 1 . 1 2 . 3 5 1 2 2 Protection 28 | . . . . . . . 1 . 1 1 . 2 2 3 2 . 1 . . 1 1 2 2 2 4 3 Artifact . | . . . . . . . . . . . . . . . . . . . . . . . . . . . Weapon 210 | . 4 1 7 2 4 6 . 7 8 11 . 26 20 13 1 1 4 2 1 12 . 16 32 5 18 9 Energy Gun 21 | . 2 . 3 2 1 . . . . . . . . 3 . . . . . . . 2 2 . 4 2 Energy Cannon 2 | . . . 1 . . . . . . . . . . . . . . . . . . . . . 1 . Ballistic Gun 60 | . 2 . . . 3 3 . 4 2 2 . 12 8 6 . 1 2 . 1 4 . 4 5 . . 1 Ballistic Cannon 1 | . . . . . . . . . . . . . . . . . . . . . . . . . 1 . Launcher 25 | . . 1 3 . . 3 . 3 . 2 . 5 . 2 . . . . . 2 . 2 . 1 1 . Special Weapon 44 | . . . . . . . . . 3 3 . 6 7 1 . . 1 1 . 1 . 5 11 1 3 1 Impact Weapon . | . . . . . . . . . . . . . . . . . . . . . . . . . . . Slashing Weapon 37 | . . . . . . . . . 3 4 . 3 5 1 1 . 1 1 . 5 . 3 7 1 1 1 Piercing Weapon 18 | . . . . . . . . . . . . . . . . . . . . . . . 5 2 7 4 Special Melee Weapon 2 | . . . . . . . . . . . . . . . . . . . . . . . 2 . . . Unidentified Prototypes 28 | . . . 1 . 2 . . . . . . . 1 3 1 . . 1 . . . . 4 2 10 3 Parts Lost 136 | . 1 . . 1 1 2 . 1 1 5 . 9 10 15 4 . . . . 1 . 9 11 23 4 38 Power 14 | . . . . 1 . . . . . . . 1 . . 1 . . . . . . . 2 4 . 5 Propulsion 46 | . . . . . 1 2 . 1 . 4 . 4 2 6 2 . . . . . . 3 3 8 . 10 Utility 53 | . 1 . . . . . . . 1 1 . 1 5 4 . . . . . 1 . 4 2 10 3 20 Weapon 23 | . . . . . . . . . . . . 3 3 5 1 . . . . . . 2 4 1 1 3 Highest Loss Streak 19 | . 1 . . 1 1 2 . 1 1 2 . 3 3 7 4 . . . . 1 . 4 2 19 4 16 Average Slot Usage (%) 91 | . 96 100 100 99 99 99 90 91 90 93 80 93 95 85 85 80 82 84 82 81 75 81 95 83 81 69 Engine 5 | . 14 14 11 10 9 9 7 7 7 7 6 5 6 4 . . . . . . . . . . . . Reactor 2 | . . . . . . . . . . . . . . 1 6 6 5 5 5 5 5 4 4 7 9 6 Treads 18 | . 28 28 33 33 35 35 30 30 30 28 20 18 . 3 13 13 9 14 17 17 15 14 4 4 13 9 Leg 8 | . . . . . . . . . . . . 18 40 30 13 6 5 2 . . . . 15 16 . 3 Wheel 1 | . . . . . . . . . . . . . . . . . 1 2 . . . 1 7 . . . Device 6 | . 10 14 11 11 9 9 6 . 1 . . . . 2 6 5 3 4 5 3 5 6 7 8 10 8 Storage 7 | . 14 14 11 11 9 9 7 7 7 7 6 6 6 6 6 6 5 5 5 5 6 6 5 5 5 9 Processor 4 | . . . 11 11 9 9 7 7 7 2 . . . . . . 5 5 5 4 . . 4 6 5 6 Hackware 12 | . . . . . . . . 7 3 21 26 18 18 9 6 8 22 23 23 23 21 25 25 16 14 5 Protection 2 | . . . . . . . 5 7 7 1 . 4 4 5 13 11 1 . . 2 5 4 1 . 4 6 Energy Gun 3 | . 14 14 16 10 7 . . . . . . . . 6 6 6 4 . . . . 3 . . . . Energy Cannon 1 | . . . 5 11 3 . . . . . . . . . . . . . . . . . . . . . Ballistic Gun 8 | . 13 . . . 15 26 23 22 19 15 13 16 15 11 5 6 7 11 11 11 10 5 1 . . . Slashing Weapon 2 | . . . . . . . . . 1 6 6 1 2 . 5 6 1 2 5 4 5 3 5 3 . . Piercing Weapon 2 | . . . . . . . . . . . . . . . . . . . . . . . 4 8 10 10 Naked Turns . | . . . . . . . . . . . . . . . . . . . . . . . . . . . Heaviest Build 178 | 13 28 30 96 96 99 98 116 115 117 114 99 126 122 134 128 128 119 113 114 121 133 133 137 151 156 178 Greatest Support 230 | 40 46 46 69 69 89 86 80 80 80 83 63 90 95 160 160 160 160 230 230 230 230 230 180 175 210 220 Greatest Overweight (x) 6 | . . . 1 1 1 1 1 1 1 1 1 1 1 2 . . 1 . . . . . 5 6 1 3 Average Overweight (x) . | . . . . 1 1 1 1 1 1 1 1 1 1 . . . . . . . . . 1 . . . Largest Inventory Capacity 25 | 8 15 15 25 25 25 25 25 25 25 25 25 25 25 25 25 25 25 25 25 25 25 25 25 25 25 25 Average Capacity 23 | 8 11 15 21 25 25 25 25 25 25 25 25 25 25 25 25 25 25 25 25 25 25 25 25 25 25 15 Most Carried 25 | 6 12 13 25 25 25 25 25 25 25 25 21 25 25 25 20 19 22 25 25 25 25 25 25 25 25 25 Average Carried 21 | 4 8 12 20 24 23 24 23 24 24 23 21 22 22 20 19 17 17 24 24 24 24 21 23 19 24 13 Final Capacity 25 | 8 15 15 25 25 25 25 25 25 25 25 25 25 25 25 25 25 25 25 25 25 25 25 25 25 25 5 Final Carried 25 | 2 12 12 25 24 25 25 23 25 22 22 21 25 19 19 20 17 22 25 25 25 25 19 25 24 25 2 Class Distribution -------------------- 29% | Botlord-Mutant 25% | Mutant 14% | Bothacker-Mutant 11% | Scavenger-Mutant 8% | Scavenger-Gunner 5% | Bothacker-Tank Dominant Class ---------------- Mutant | -10/Materials Mutant | -10/Mines Mutant | -9/Materials Mutant | -9/Mines Gunner | -8/Materials Scavenger-Gunner | -8/Garrison Scavenger-Gunner | -7/Factory Scavenger-Gunner | -7/Garrison Bothacker-Mutant | -7/Factory Bothacker-Mutant | -7/Garrison Bothacker-Mutant | -6/Factory Bothacker-Tank | -6/Garrison Botlord-Mutant | -6/Extension Bothacker-Tank | -6/Cetus Scavenger-Mutant | -6/Archives Scavenger-Mutant | -6/Hub_04(d) Scavenger-Mutant | -5/Factory Scavenger-Mutant | -5/Waste Scavenger-Mutant | -5/Factory Botlord-Mutant | -5/Garrison Botlord-Mutant | -4/Factory Botlord-Mutant | -4/Garrison Botlord-Mutant | -4/Factory Botlord-Mutant | -3/Research Bothacker-Mutant | -3/Testing Mutant | -2/Research Resources | -11 -10 -10 -9 -9 -8 -8 -7 -7 -7 -7 -6 -6 -6 -6 -6 -6 -5 -5 -5 -5 -4 -4 -4 -3 -3 -2 ----------- Run | Scr Mat Min Mat Min Mat Gar Fac Gar Fac Gar Fac Gar Ext Cet Arc Hub Fac Was Fac Gar Fac Gar Fac Res Tes Res Matter Collected 8931 | 167 199 37 200 90 48 400 . 244 413 268 . 921 786 754 69 . 200 220 20 422 . 645 1262 373 716 477 Remotely 65 | . . . . . . . . . . . . . . . . . . . . . . . . . . 65 Salvage Created 15002 | . 464 12 764 173 120 532 . 496 317 326 . 640 574 781 202 . 435 70 21 643 . 946 2275 1238 1359 2614 Parts 753 | . 36 3 58 15 5 22 . 24 18 16 . 32 13 31 11 . 27 2 2 30 . 28 111 80 68 121 Haulers Intercepted 6 | . 1 . 3 . 1 . . . . . . . . . . . . . . . . . 1 . . . Recyclers Shooed 5 | . . 1 1 . . . . . . . . . . . . . . . . . . . 3 . . . Parts Field Recycled . | . . . . . . . . . . . . . . . . . . . . . . . . . . . Retrieved Matter . | . . . . . . . . . . . . . . . . . . . . . . . . . . . Parts Self-Destructed . | . . . . . . . . . . . . . . . . . . . . . . . . . . . Prevented . | . . . . . . . . . . . . . . . . . . . . . . . . . . . Kills | -11 -10 -10 -9 -9 -8 -8 -7 -7 -7 -7 -6 -6 -6 -6 -6 -6 -5 -5 -5 -5 -4 -4 -4 -3 -3 -2 ------- Run | Scr Mat Min Mat Min Mat Gar Fac Gar Fac Gar Fac Gar Ext Cet Arc Hub Fac Was Fac Gar Fac Gar Fac Res Tes Res Combat Hostiles Destroyed 254 | . 10 1 22 9 1 15 . 16 5 14 . 21 6 15 2 . 7 . . 13 . 15 24 19 11 28 Melee 93 | . . . . . . . . . 2 4 . 2 2 . . . 1 . . 1 . 5 22 15 11 28 Guns 95 | . 10 . 15 6 1 10 . 5 3 2 . 8 4 14 1 . 6 . . 6 . 2 2 . . . Cannons 4 | . . . 1 3 . . . . . . . . . . . . . . . . . . . . . . AOE 61 | . . 1 6 . . 5 . 11 . 8 . 11 . 1 1 . . . . 6 . 7 . 4 . . Classes Destroyed 19 | . 7 . 2 . . 1 . 2 1 . . 1 1 . . . 1 1 . . . 1 . . 1 . Worker 10 | . . . . . . . . . . . . . . . . . 1 . 1 . . . 5 1 1 1 Builder 5 | . 1 . . . 1 . . . . . . . . . . . . . . . . . 1 1 . 1 Tunneler 3 | . . . 1 . . . . . . . . . . . . . 1 . . . . . . . . 1 Hauler 6 | . 1 . 3 . 1 . . . . . . . . . . . . . . . . . 1 . . . Recycler 12 | . 1 . 1 . . . . . 1 . . . . . . . . . . . . . 3 1 2 3 Mechanic 1 | . . . . . . . . . . . . . 1 . . . . . . . . . . . . . Operator 4 | . 1 . . . . . . . . . . . . . . . 1 . . . . . 1 . . 1 Watcher 11 | . 1 . 4 . . . . . . . . . . 1 . . 2 . . . . . 1 2 . . Swarmer 80 | . 3 1 13 7 . 3 . 4 . 10 . 13 . . . . 3 . . 3 . 7 . 8 . 5 Saboteur 1 | . . . . . . . . . . . . 1 . . . . . . . . . . . . . . Grunt 89 | . 7 . 4 2 1 7 . 5 1 2 . 7 3 5 2 . 3 . . 3 . 5 12 6 4 10 Brawler 10 | . . . . . . . . 5 . . . . . 1 . . . . . 2 . . . . 1 1 Duelist 4 | . . . . . . . . 1 . . . . . . . . . . . 1 . . . 1 1 . Researcher 5 | . . . . . . . . . . . . . . . . . . . . . . . . . 5 . Sentry 19 | . . . 5 . . 4 . 1 1 2 . . 3 . . . . . . 1 . . 2 . . . Demolisher 1 | . . . . . . . . . . . . . . . . . . . . . . 1 . . . . Hunter 17 | . . . . . . 1 . . . . . 1 1 3 . . 1 . . 1 . 2 . . 2 5 Programmer 28 | . . . . . . . . . 3 . . . . . . . . . . 2 . . 11 3 3 6 Behemoth 3 | . . . . . . . . . . . . . . . . . . . . . . 1 . 1 . 1 Cetus Guard 6 | . . . . . . . . . . . . . . 6 . . . . . . . . . . . . Investigator 1 | . . . . . . . . . . . . . . . . . . . . . . . . . 1 . Thug 2 | . . . . . . . . . . . . . 1 . . . . . . 1 . . . . . . Savage 1 | . . . . . . . . . . . . . 1 . . . . . . . . . . . . . Martyr 1 | . . . . . . . . . . . . . . . . . . 1 . . . . . . . . Best Kill Streak 8 | . 4 1 7 7 2 8 . 8 3 5 . 4 3 3 1 . 6 . 1 4 . 4 4 7 5 8 Combat Bots Only 8 | . 3 1 5 7 1 8 . 8 1 5 . 4 2 3 1 . 4 . . 4 . 4 2 6 3 7 Max Kills in Single Turn 3 | . 1 1 2 1 1 2 . 2 1 2 . 2 1 2 1 . 2 1 1 3 . 3 1 3 2 2 Gunslinging 1 | . . . 1 . . . . 1 . . . . . 1 . . . . . . . . . . . . Exploded 3 | . . 1 2 . . 2 . 2 . 2 . 2 . 1 1 . . . . 3 . 3 . 3 . . Melee 2 | . . . . . . . . . 1 1 . 1 1 . . . 1 . . 1 . 1 1 1 2 2 Uniques/NPCs Destroyed . | . . . . . . . . . . . . . . . . . . . . . . . . . . . Combat | -11 -10 -10 -9 -9 -8 -8 -7 -7 -7 -7 -6 -6 -6 -6 -6 -6 -5 -5 -5 -5 -4 -4 -4 -3 -3 -2 -------- Run | Scr Mat Min Mat Min Mat Gar Fac Gar Fac Gar Fac Gar Ext Cet Arc Hub Fac Was Fac Gar Fac Gar Fac Res Tes Res Damage Taken 36008 | . 566 19 527 489 89 549 . 622 295 1180 . 1244 1509 4123 1300 41 534 104 53 391 . 2689 2775 4301 1492 11116 Core 3787 | . 79 . 74 75 . 55 . 28 12 175 . 98 196 267 18 . 78 . . 31 . 262 290 472 124 1453 Absorbed by Shields 2719 | . . . . . . . . . 36 . . . . . . . . . . . . . . 347 546 1790 Reduced by Siege Mode 319 | . . . . . . . . . . . . . . 15 . . . . . . . 152 . . 6 146 Core Remaining (%) 68 | 100 . 68 . 62 . 90 . . . 69 . . . . . 31 . . . 89 . . 52 . 54 . Volleys Fired 600 | . 58 1 48 18 11 38 . 28 24 19 . 61 30 79 5 . 17 7 . 22 . 55 43 7 14 15 Largest 3 | . 2 1 2 2 3 3 . 3 3 2 . 3 3 3 2 . 3 1 . 3 . 3 2 1 1 2 Hottest 240 | . 85 30 133 133 189 73 . 78 78 50 . 84 84 240 108 . 84 30 . 89 . 240 108 50 50 75 Shots Fired 1125 | . 115 1 90 36 23 66 . 54 64 26 . 115 72 160 11 . 41 7 . 45 . 97 59 7 14 22 Gun 910 | . 115 . 73 18 17 56 . 39 60 14 . 85 64 154 11 . 41 . . 40 . 71 31 . . 21 Cannon 35 | . . . 11 18 6 . . . . . . . . . . . . . . . . . . . . . Launcher 69 | . . 1 6 . . 10 . 15 . 8 . 11 . 3 . . . . . 4 . 8 . 3 . . Special 111 | . . . . . . . . . 4 4 . 19 8 3 . . . 7 . 1 . 18 28 4 14 1 Kinetic 649 | . 58 . . . 5 56 . 39 60 14 . 85 64 106 5 . 41 . . 40 . 44 25 . . 7 Thermal 282 | . 57 . 84 36 18 . . . . . . . . 48 6 . . . . . . 27 6 . . . Explosive 69 | . . 1 6 . . 10 . 15 . 8 . 11 . 3 . . . . . 4 . 8 . 3 . . Electromagnetic 14 | . . . . . . . . . . . . . . . . . . . . . . . . . . 14 Robot Hit Streak 21 | . 13 1 17 7 8 21 . 9 8 15 . 10 13 7 6 . 10 6 . 11 . 20 13 5 6 4 Robot Miss Streak 9 | . 9 . 6 3 2 2 . 2 2 1 . 4 9 5 2 . 2 1 . 3 . 2 3 1 1 2 Penetration Max 1 | . . . . . . . . . . . . . 1 . . . 1 . . 1 . . . . . 1 Secondary Targets 17 | . . . 2 . . 3 . 1 . . . 1 . 5 . . 3 . . 1 . . 1 . . . Max Gunslinging Chain 1 | . . . 1 . . 1 . 1 . . . 1 . 1 . . 1 . . 1 . . 1 . . . Shots Hit Robots 1202 | . 75 1 71 28 15 43 . 34 45 41 . 65 63 124 14 . 35 10 1 33 . 111 147 59 62 125 Core Hits 743 | . 40 1 81 21 10 32 . 43 10 24 . 39 35 101 10 . 20 1 1 29 . 36 52 45 35 77 Critical Kills 1 | . . . . . . . . . . . . . . 1 . . . . . . . . . . . . Critical Parts Destroyed 7 | . . . . . . . . 1 2 . . . 3 1 . . . . . . . . . . . . Critical Strikes 46 | . . . 2 . . . . 1 2 1 . . 3 5 . . . . . . . 1 6 6 4 15 Burn 2 | . . . 2 . . . . . . . . . . . . . . . . . . . . . . . Destroy 12 | . . . . . . . . 1 2 . . . 3 5 . . . . . . . . 1 . . . Sever 6 | . . . . . . . . . . 1 . . . . . . . . . . . 1 2 2 . . Puncture 26 | . . . . . . . . . . . . . . . . . . . . . . . 3 4 4 15 Melee Attacks 601 | . . . . . . . . . 4 21 . 7 30 . 4 . 9 4 1 4 . 36 146 101 78 156 Impact . | . . . . . . . . . . . . . . . . . . . . . . . . . . . Slashing 212 | . . . . . . . . . 4 21 . 7 30 . 4 . 9 4 1 4 . 36 65 13 2 12 Piercing 382 | . . . . . . . . . . . . . . . . . . . . . . . 74 88 76 144 Sneak Attacks 102 | . . . . . . . . . 4 12 . 1 8 . . . 3 4 1 . . 15 32 2 13 7 Combat Hostiles 46 | . . . . . . . . . 4 10 . . 4 . . . . . . . . 14 12 . 2 . Follow-up Attacks 76 | . . . . . . . . . . . . . . . . . . . . . . . 22 14 11 29 Damage Inflicted 46466 | . 684 67 1476 421 243 1339 . 1860 1268 2426 . 2005 2129 3053 842 . 1333 566 137 1554 . 5764 6955 3022 3257 6065 Guns 12556 | . 684 . 852 153 160 525 . 456 830 168 . 941 1008 2844 207 . 761 . . 877 . 1442 555 . . 93 Cannons 474 | . . . 123 268 83 . . . . . . . . . . . . . . . . . . . . . Explosions 7021 | . . 67 501 . . 814 . 1404 . 728 . 878 . 209 . . . . . 640 . 974 . 650 . 156 Melee 26368 | . . . . . . . . . 438 1530 . 186 1092 . 635 . 572 566 137 37 . 3348 6400 2367 3257 5803 Ramming 47 | . . . . . . . . . . . . . 29 . . . . . . . . . . 5 . 13 Kinetic 9257 | . 285 . . . 33 525 . 456 830 168 . 941 1008 2044 94 . 761 . . 877 . 775 390 . . 70 Thermal 3750 | . 399 . 975 421 210 . . . . . . . . 800 113 . . . . . . 667 165 . . . Explosive 7021 | . . 67 501 . . 814 . 1404 . 728 . 878 . 209 . . . . . 640 . 974 . 650 . 156 Electromagnetic 23 | . . . . . . . . . . . . . . . . . . . . . . . . . . 23 Impact . | . . . . . . . . . . . . . . . . . . . . . . . . . . . Slashing 12187 | . . . . . . . . . 438 1530 . 186 1092 . 635 . 572 566 137 37 . 3348 2927 233 53 433 Piercing 14181 | . . . . . . . . . . . . . . . . . . . . . . . 3473 2134 3204 5370 Highest Corruption 53 | . . . . . . . . . . . . . 17 17 17 17 . . . 4 . . 6 6 13 53 Average Corruption 9 | . . . . . . . . . . . . . 16 17 17 17 . . . 2 . . 4 5 7 21 Corruption Purged 1 | . . . . . . . . . . . . . . . . . . . . 1 . . . . . . Effects 223 | . . . . . . . . . . . . . 24 35 6 7 . . . 2 . . 58 15 40 36 Message Errors 55 | . . . . . . . . . . . . . 4 6 . . . . . . . . 21 5 11 8 Matter Fused 52 | . . . . . . . . . . . . . 5 6 2 2 . . . . . . 17 1 9 10 Heat Flow Errors 20 | . . . . . . . . . . . . . 3 1 1 . . . . . . . 5 2 6 2 Energy Discharges 27 | . . . . . . . . . . . . . 4 5 1 1 . . . 1 . . 4 1 5 5 Parts Rejected 7 | . . . . . . . . . . . . . . 3 . . . . . . . . . 2 . 2 Data Loss (minor) 32 | . . . . . . . . . . . . . 4 3 . 2 . . . . . . 9 3 7 4 Data Loss (major) 14 | . . . . . . . . . . . . . 3 3 1 1 . . . . . . 1 1 2 2 Misfires 3 | . . . . . . . . . . . . . . 1 1 . . . . . . . 1 . . . Alerts 2 | . . . . . . . . . . . . . . 2 . . . . . . . . . . . . Misdirections 6 | . . . . . . . . . . . . . 1 1 . 1 . . . . . . . . . 3 Weapon Failures 5 | . . . . . . . . . . . . . . 4 . . . . . 1 . . . . . . Overload Shots 5 | . . . . . . . . . . . . . . 2 . . . . . . . 3 . . . . Overflow Damage 2989 | . . . 86 1 . . . 6 144 391 . 5 229 . 153 . . 153 . 1 . 448 1034 37 203 98 Projectiles 1 | . . . . 1 . . . . . . . . . . . . . . . . . . . . . . Explosions 262 | . . . 86 . . . . 6 . 78 . 5 . . . . . . . 1 . 58 . 28 . . Melee 2726 | . . . . . . . . . 144 313 . . 229 . 153 . . 153 . . . 390 1034 9 203 98 Knockbacks 1 | . . . . . . . . . . . . . 1 . . . . . . . . . . . . . Impact 1 | . . . . . . . . . . . . . 1 . . . . . . . . . . . . . Kinetic . | . . . . . . . . . . . . . . . . . . . . . . . . . . . Secondary . | . . . . . . . . . . . . . . . . . . . . . . . . . . . Self-Inflicted Damage 381 | . . . . . . . . 57 . 130 . 65 . . . . . . . . . . . . . 129 Shots 14 | . . . . . . . . 3 . 5 . 5 . . . . . . . . . . . . . 1 Rammed 5 | . . . . . . . . . . . . . . . . . . . . . . . . 1 . 4 Targets Rammed 7 | . . . . . . . . . . . . . 1 . . . . . . . . . . 1 . 5 Kicked 2 | . . . . . . . . . . . . . 1 . . . . . . . . . . . . 1 Crushed . | . . . . . . . . . . . . . . . . . . . . . . . . . . . Highest Temperature 448 | . 85 . 366 18 183 . . 174 240 21 . 253 261 448 231 . 22 . . 15 . 354 218 217 269 209 Average Temperature 76 | . 22 . 72 14 105 . . 61 93 6 . 48 67 122 79 . 10 . . 6 . 98 45 61 98 61 Received Heat Transfer 4233 | . 300 6 126 27 54 180 . 117 36 198 . 336 219 447 54 . 63 . . 45 . 150 317 609 140 809 Effects 13 | . . . . . . . . . . . . . 1 9 . . . . . . . . . . 3 . Shutdowns 2 | . . . . . . . . . . . . . . 2 . . . . . . . . . . . . Energy Bleed 2 | . . . . . . . . . . . . . 1 1 . . . . . . . . . . . . Interference 9 | . . . . . . . . . . . . . . 6 . . . . . . . . . . 3 . Siege Activations 8 | . . . . . . . . . . . . . . 1 . . . . . . . 3 . . 1 3 Total Turns 145 | . . . . . . . . . . . . . . 15 . . . . . . . 48 . . 27 55 Longest Duration 38 | . . . . . . . . . . . . . . 15 . . . . . . . 38 . . 27 30 Robots Corrupted . | . . . . . . . . . . . . . . . . . . . . . . . . . . . Combat Hostiles . | . . . . . . . . . . . . . . . . . . . . . . . . . . . Parts Fried . | . . . . . . . . . . . . . . . . . . . . . . . . . . . Impact Corruptions 1 | . . . . . . . . . . . . . 1 . . . . . . . . . . . . . Robots Melted 1 | . . . . . . . . . . . . . . . . . . . . . . 1 . . . . Combat Hostiles 1 | . . . . . . . . . . . . . . . . . . . . . . 1 . . . . Parts Melted 17 | . . . 6 . 1 . . . . 1 . . . 2 . . . . . 5 . 2 . . . . Heat Transferred 5968 | . 760 . 1921 661 386 . . . . . . . . 1160 185 . . . . . . 710 185 . . . Parts Sabotaged 5 | . . . . . . . . . . . . . . . . . . . . . . . 4 . 1 . Parts Stolen . | . . . . . . . . . . . . . . . . . . . . . . . . . . . Parts Stripped . | . . . . . . . . . . . . . . . . . . . . . . . . . . . Power Chain Reactions . | . . . . . . . . . . . . . . . . . . . . . . . . . . . Missiles Intercepted . | . . . . . . . . . . . . . . . . . . . . . . . . . . . Alert | -11 -10 -10 -9 -9 -8 -8 -7 -7 -7 -7 -6 -6 -6 -6 -6 -6 -5 -5 -5 -5 -4 -4 -4 -3 -3 -2 ------- Run | Scr Mat Min Mat Min Mat Gar Fac Gar Fac Gar Fac Gar Ext Cet Arc Hub Fac Was Fac Gar Fac Gar Fac Res Tes Res Peak Influence 752 | . 205 126 338 165 61 680 357 619 405 634 332 752 454 156 87 30 226 162 124 498 261 428 303 539 358 239 Initial 394 | . . 18 . 47 20 42 357 249 324 268 332 232 394 14 37 23 14 79 . 86 261 182 224 156 297 137 Average 221 | . 105 54 125 37 39 405 357 500 292 432 332 483 149 84 53 11 53 88 10 343 261 325 163 281 254 131 Maximum Alert Level 3 | . 1 . 1 . . 2 1 2 2 2 1 3 2 . . . 1 . . 2 1 2 1 2 1 1 Low Security (%) 51 | 100 99 100 69 100 100 11 . . 19 . . 1 74 100 100 100 93 100 100 24 . 6 60 42 17 70 Level 1 32 | . . . 30 . . 41 100 18 77 52 100 37 19 . . . 6 . . 16 100 59 39 37 82 29 Level 2 15 | . . . . . . 47 . 81 2 47 . 53 5 . . . . . . 59 . 34 . 20 . . Level 3 . | . . . . . . . . . . . . 6 . . . . . . . . . . . . . . Level 4 . | . . . . . . . . . . . . . . . . . . . . . . . . . . . Level 5 . | . . . . . . . . . . . . . . . . . . . . . . . . . . . High Security . | . . . . . . . . . . . . . . . . . . . . . . . . . . . Max Security . | . . . . . . . . . . . . . . . . . . . . . . . . . . . Squads Dispatched 33 | . 2 . 1 . . . . . 6 . . . . . . . 2 . 1 . . . 8 6 4 3 Investigation 3 | . . . . . . . . . . . . . . . . . . . 1 . . . 1 1 . . Extermination 8 | . . . . . . . . . 2 . . . . . . . . . . . . . 3 . 1 2 Reinforcement 13 | . 2 . 1 . . . . . 2 . . . . . . . 1 . . . . . 1 3 2 1 Assault 3 | . . . . . . . . . . . . . . . . . . . . . . . 1 1 1 . Garrison 6 | . . . . . . . . . 2 . . . . . . . 1 . . . . . 2 1 . . Intercept . | . . . . . . . . . . . . . . . . . . . . . . . . . . . Construction Impeded . | . . . . . . . . . . . . . . . . . . . . . . . . . . . Haulers Reinforced 1 | . . . . . . . . . . . . . . . . . . . . . . . . 1 . . Active Scanning Responses . | . . . . . . . . . . . . . . . . . . . . . . . . . . . Cargo Convoy Interrupts 1 | . . . . . . . . . . . . . . . . . . . . . . . . 1 . . Stealth | -11 -10 -10 -9 -9 -8 -8 -7 -7 -7 -7 -6 -6 -6 -6 -6 -6 -5 -5 -5 -5 -4 -4 -4 -3 -3 -2 --------- Run | Scr Mat Min Mat Min Mat Gar Fac Gar Fac Gar Fac Gar Ext Cet Arc Hub Fac Was Fac Gar Fac Gar Fac Res Tes Res Distress Signals 15 | . . . 3 . 1 . . . 1 . . . 1 2 . 1 . . . . . . 2 . 1 3 Communications Jammed 160 | . . . . . . . . . . . . . . 43 . . 23 . 1 . . . 23 70 . . Distress Signals 159 | . . . . . . . . . . . . . . 43 . . 23 . . . . . 23 70 . . Times Spotted 462 | . 22 7 29 11 6 16 . 16 11 17 . 33 24 23 8 2 16 6 1 17 . 33 60 31 30 43 Peak Tracking Total 10 | . 3 3 6 6 5 7 . 7 3 5 . 5 4 5 10 3 3 2 1 4 . 6 7 7 7 8 Tactical Retreats 28 | . 2 . 1 1 . 1 . . . 1 . 4 1 . 1 . 2 . . 1 . 5 3 2 2 1 Traps | -11 -10 -10 -9 -9 -8 -8 -7 -7 -7 -7 -6 -6 -6 -6 -6 -6 -5 -5 -5 -5 -4 -4 -4 -3 -3 -2 ------- Run | Scr Mat Min Mat Min Mat Gar Fac Gar Fac Gar Fac Gar Ext Cet Arc Hub Fac Was Fac Gar Fac Gar Fac Res Tes Res Traps Triggered 28 | . . . . . . 3 . 4 . 6 . 9 1 . . 1 1 . . . . . . . 1 2 Indirectly . | . . . . . . . . . . . . . . . . . . . . . . . . . . . Trap Hack Attempts . | . . . . . . . . . . . . . . . . . . . . . . . . . . . Triggered . | . . . . . . . . . . . . . . . . . . . . . . . . . . . Disarmed 3 | . . . . . . . . . . . . . . . . . . . . . . . . . 3 . Reprogrammed . | . . . . . . . . . . . . . . . . . . . . . . . . . . . Reused . | . . . . . . . . . . . . . . . . . . . . . . . . . . . Traps Extracted . | . . . . . . . . . . . . . . . . . . . . . . . . . . . Installed . | . . . . . . . . . . . . . . . . . . . . . . . . . . . Triggered 2 | . . . . . . . . . . . . . . . . . . . . . . . . 2 . . Machines | -11 -10 -10 -9 -9 -8 -8 -7 -7 -7 -7 -6 -6 -6 -6 -6 -6 -5 -5 -5 -5 -4 -4 -4 -3 -3 -2 ---------- Run | Scr Mat Min Mat Min Mat Gar Fac Gar Fac Gar Fac Gar Ext Cet Arc Hub Fac Was Fac Gar Fac Gar Fac Res Tes Res Machines Disabled 33 | . . 1 . . 1 3 . . 5 1 . 3 . . . . . . 2 3 . 1 2 1 9 1 Max in Single Turn 1 | . . . . . 1 1 . . . 1 . 1 . . . . . . . 1 . 1 1 1 1 1 Garrison Access 3 | . . . . . . . . . . . . . . . . . . . . . . . 1 1 1 . Garrison Relay 11 | . . . . . . 3 . . . 1 . 3 . . . . . . . 3 . 1 . . . . Machines Sabotaged . | . . . . . . . . . . . . . . . . . . . . . . . . . . . Garrisons Compromised 1 | . . . . . . . . . . . . . . . . . . . . . . . . 1 . . Overloaded Fab Kills . | . . . . . . . . . . . . . . . . . . . . . . . . . . . Fab Network Shutdowns . | . . . . . . . . . . . . . . . . . . . . . . . . . . . Hacking | -11 -10 -10 -9 -9 -8 -8 -7 -7 -7 -7 -6 -6 -6 -6 -6 -6 -5 -5 -5 -5 -4 -4 -4 -3 -3 -2 --------- Run | Scr Mat Min Mat Min Mat Gar Fac Gar Fac Gar Fac Gar Ext Cet Arc Hub Fac Was Fac Gar Fac Gar Fac Res Tes Res Machines Accessed 61 | . 4 1 9 . 2 . 2 . 1 . 1 . 10 1 . 2 1 . 2 . 1 . 15 1 7 1 Terminals 43 | . 4 1 9 . 1 . 1 . . . . . 9 1 . 2 . . 1 . . . 8 . 5 1 Fabricators 4 | . . . . . . . . . . . . . . . . . . . . . . . 3 . 1 . Repair Stations 4 | . . . . . . . . . . . . . 1 . . . 1 . . . . . 2 . . . Recycling Units 1 | . . . . . . . . . . . . . . . . . . . . . . . 1 . . . Scanalyzers . | . . . . . . . . . . . . . . . . . . . . . . . . . . . Garrison Access 9 | . . . . . 1 . 1 . 1 . 1 . . . . . . . 1 . 1 . 1 1 1 . Total Hacks 141 | . 12 1 25 . 3 . 4 . 1 . 2 . 14 2 . 6 4 . 12 . 2 . 35 1 14 3 Successful 73 | . 6 . 13 . 2 . 2 . 1 . 2 . 10 . . 1 3 . 5 . 2 . 18 1 7 . Failed 68 | . 6 1 12 . 1 . 2 . . . . . 4 2 . 5 1 . 7 . . . 17 . 7 3 Catastrophic 16 | . . . 2 . . . 1 . . . . . 1 1 . 2 . . 1 . . . 4 . 2 2 Database Lockouts . | . . . . . . . . . . . . . . . . . . . . . . . . . . . Manual 48 | . 7 2 12 . . . 2 . . . . . 2 . . . . . 10 . . . 9 . 1 3 Terminals 105 | . 12 1 25 . 2 . 2 . . . . . 12 2 . 6 . . 10 . . . 18 . 12 3 Fabricators 11 | . . . . . . . . . . . . . . . . . . . . . . . 10 . 1 . Repair Stations 10 | . . . . . . . . . . . . . 2 . . . 4 . . . . . 4 . . . Recycling Units 1 | . . . . . . . . . . . . . . . . . . . . . . . 1 . . . Scanalyzers . | . . . . . . . . . . . . . . . . . . . . . . . . . . . Garrison Access 14 | . . . . . 1 . 2 . 1 . 2 . . . . . . . 2 . 2 . 2 1 1 . Terminal Hacks 36 | . 4 . 9 . 1 . . . . . . . 7 . . 1 . . 2 . . . 6 . 6 . Prototype ID Bank 4 | . 1 . 1 . . . . . . . . . . . . . . . 1 . . . . . 1 . Open Door 7 | . . . . . . . . . . . . . 6 . . . . . . . . . . . 1 . Level Access Points 1 | . . . 1 . . . . . . . . . . . . . . . . . . . . . . . Branch Access Points 4 | . 1 . 1 . . . . . . . . . . . . . . . 1 . . . 1 . . . Machine Index 2 | . . . 1 . . . . . . . . . . . . . . . . . . . 1 . . . Terminal Index 1 | . 1 . . . . . . . . . . . . . . . . . . . . . . . . . Unreport Threat 3 | . . . 1 . . . . . . . . . 1 . . 1 . . . . . . . . . . Locate Traps 5 | . . . 1 . 1 . . . . . . . . . . . . . . . . . 2 . 1 . Disarm Traps 1 | . . . . . . . . . . . . . . . . . . . . . . . . . 1 . Surveillance Status 1 | . . . 1 . . . . . . . . . . . . . . . . . . . . . . . Recall Investigation 1 | . . . . . . . . . . . . . . . . . . . . . . . 1 . . . Zone Layout 4 | . 1 . 2 . . . . . . . . . . . . . . . . . . . 1 . . . Protovariant Controls 2 | . . . . . . . . . . . . . . . . . . . . . . . . . 2 . Fabricator Hacks 2 | . . . . . . . . . . . . . . . . . . . . . . . 2 . . . Network Status 2 | . . . . . . . . . . . . . . . . . . . . . . . 2 . . . Repair Station Hacks 9 | . . . . . . . . . . . . . 2 . . . 3 . . . . . 4 . . . Scan Component 5 | . . . . . . . . . . . . . 1 . . . 2 . . . . . 2 . . . Repair 4 | . . . . . . . . . . . . . 1 . . . 1 . . . . . 2 . . . Recycling Unit Hacks . | . . . . . . . . . . . . . . . . . . . . . . . . . . . Scanalyzer . | . . . . . . . . . . . . . . . . . . . . . . . . . . . Garrison Access Hacks 12 | . . . . . 1 . 2 . 1 . 2 . . . . . . . 1 . 2 . 1 1 1 . Unlock Access 6 | . . . . . 1 . 1 . 1 . 1 . . . . . . . 1 . 1 . . . . . Seal Access 2 | . . . . . . . . . . . . . . . . . . . . . . . . 1 1 . Coupler Status 4 | . . . . . . . 1 . . . 1 . . . . . . . . . 1 . 1 . . . Unauthorized Hacks 14 | . 2 . 4 . . . . . . . . . 1 . . . . . 2 . . . 5 . . . Terminals 9 | . 2 . 4 . . . . . . . . . 1 . . . . . 1 . . . 1 . . . Botnet 9 | . 2 . 4 . . . . . . . . . 1 . . . . . 1 . . . 1 . . . Fabricators 3 | . . . . . . . . . . . . . . . . . . . . . . . 3 . . . Report 1 | . . . . . . . . . . . . . . . . . . . . . . . 1 . . . Haulers 2 | . . . . . . . . . . . . . . . . . . . . . . . 2 . . . Repair Stations . | . . . . . . . . . . . . . . . . . . . . . . . . . . . Recycling Units . | . . . . . . . . . . . . . . . . . . . . . . . . . . . Scanalyzers . | . . . . . . . . . . . . . . . . . . . . . . . . . . . Garrison Access 2 | . . . . . . . . . . . . . . . . . . . 1 . . . 1 . . . Eject 2 | . . . . . . . . . . . . . . . . . . . 1 . . . 1 . . . Data Cores Recovered . | . . . . . . . . . . . . . . . . . . . . . . . . . . . Used . | . . . . . . . . . . . . . . . . . . . . . . . . . . . Hacking Detections 50 | . 4 1 9 . 1 . 2 . . . . . 6 1 . 2 1 . 2 . 1 . 14 . 5 1 Full Trace Events . | . . . . . . . . . . . . . . . . . . . . . . . . . . . Feedback Events . | . . . . . . . . . . . . . . . . . . . . . . . . . . . Feedback Blocked . | . . . . . . . . . . . . . . . . . . . . . . . . . . . Robot Schematics Acquired . | . . . . . . . . . . . . . . . . . . . . . . . . . . . Robots Built . | . . . . . . . . . . . . . . . . . . . . . . . . . . . Matter . | . . . . . . . . . . . . . . . . . . . . . . . . . . . Time . | . . . . . . . . . . . . . . . . . . . . . . . . . . . Total Robot Build Rating . | . . . . . . . . . . . . . . . . . . . . . . . . . . . Part Schematics Acquired . | . . . . . . . . . . . . . . . . . . . . . . . . . . . Parts Built . | . . . . . . . . . . . . . . . . . . . . . . . . . . . Matter . | . . . . . . . . . . . . . . . . . . . . . . . . . . . Time . | . . . . . . . . . . . . . . . . . . . . . . . . . . . Total Part Build Rating . | . . . . . . . . . . . . . . . . . . . . . . . . . . . Parts Repaired 3 | . . . . . . . . . . . . . 1 . . . 1 . . . . . 1 . . . Time 315 | . . . . . . . . . . . . . 22 . . . 136 . . . . . 157 . . . Parts Recycled . | . . . . . . . . . . . . . . . . . . . . . . . . . . . Recycled Matter . | . . . . . . . . . . . . . . . . . . . . . . . . . . . Retrieved Matter . | . . . . . . . . . . . . . . . . . . . . . . . . . . . Retrieved Components . | . . . . . . . . . . . . . . . . . . . . . . . . . . . Parts Scanalyzed . | . . . . . . . . . . . . . . . . . . . . . . . . . . . Part Schematics Acquired . | . . . . . . . . . . . . . . . . . . . . . . . . . . . Parts Damaged . | . . . . . . . . . . . . . . . . . . . . . . . . . . . Bothacking | -11 -10 -10 -9 -9 -8 -8 -7 -7 -7 -7 -6 -6 -6 -6 -6 -6 -5 -5 -5 -5 -4 -4 -4 -3 -3 -2 ------------ Run | Scr Mat Min Mat Min Mat Gar Fac Gar Fac Gar Fac Gar Ext Cet Arc Hub Fac Was Fac Gar Fac Gar Fac Res Tes Res Used RIF Installer 6 | . . . . . . 1 . 1 . 1 . 1 . . . . . . . 1 . 1 . . . . Hotswap 1 | . . . . . . . . . . . . 1 . . . . . . . . . . . . . . Threat Obfuscator 1 | . . . . . . . . . . . . . . . . . . . . 1 . . . . . . Signal Jammer 1 | . . . . . . . . 1 . . . . . . . . . . . . . . . . . . Zone Cloak 1 | . . . . . . . . . . 1 . . . . . . . . . . . . . . . . Patrol Navigation 1 | . . . . . . . . . . . . . . . . . . . . . . 1 . . . . Robots Hacked 71 | . . . . . . . . . 4 4 . 8 7 . . . . 6 . . . 13 17 3 8 1 Non-combat 13 | . . . . . . . . . . . . . 1 . . . . . . . . . 6 3 2 1 Combat 58 | . . . . . . . . . 4 4 . 8 6 . . . . 6 . . . 13 11 . 6 . Robot Hacks Applied 78 | . . . . . . . . . 4 4 . 9 7 . . . . 6 . . . 15 19 3 10 1 map_walls 1 | . . . . . . . . . . . . . 1 . . . . . . . . . . . . . drop_inventory 4 | . . . . . . . . . . . . . . . . . . . . . . . 2 1 1 . locate_stockpiles 1 | . . . . . . . . . . . . . . . . . . . . . . . 1 . . . find_recycling 1 | . . . . . . . . . . . . . . . . . . . . . . . . . . 1 ignore_parts 1 | . . . . . . . . . . . . . . . . . . . . . . . 1 . . . map_route 5 | . . . . . . . . . . . . . . . . . . . . . . . 2 2 1 . disable_scanner 3 | . . . . . . . . . . . . . . . . . . . . . . . . . 3 . locate_prototypes 1 | . . . . . . . . . . . . . . . . . . . . . . . . . 1 . report_analyses 1 | . . . . . . . . . . . . . . . . . . . . . . . . . 1 . ignore_targets 6 | . . . . . . . . . . . . . . . . . . 6 . . . . . . . . disrupt_area 1 | . . . . . . . . . . . . 1 . . . . . . . . . . . . . . spike_heat 1 | . . . . . . . . . . . . . . . . . . . . . . 1 . . . . overload_power 1 | . . . . . . . . . . . . 1 . . . . . . . . . . . . . . amplify_resonance 2 | . . . . . . . . . . . . . 1 . . . . . . . . 1 . . . . reboot_system 18 | . . . . . . . . . 1 1 . . 2 . . . . . . . . 7 4 . 3 . overwrite_iff 26 | . . . . . . . . . 3 3 . 5 2 . . . . . . . . 6 7 . . . streamctrl_high 1 | . . . . . . . . . . . . . 1 . . . . . . . . . . . . . formatsys_low 1 | . . . . . . . . . . . . . . . . . . . . . . . 1 . . . formatsys_high 3 | . . . . . . . . . . . . 2 . . . . . . . . . . 1 . . . Relay Couplers Released 55 | . . . . . . 12 . . . 5 . 9 . . . . . . 4 11 . 4 7 . . 3 Ejected 7 | . . . . . . . . . . . . . . . . . . . 4 . . . 3 . . . Machine Destruction 41 | . . . . . . 12 . . . 5 . 9 . . . . . . . 11 . 4 . . . . Programmers 7 | . . . . . . . . . . . . . . . . . . . . . . . 4 . . 3 Attached 28 | . . . . . . . . . 2 4 1 3 3 . . . 1 . 1 2 . 3 4 1 1 2 Robots Rewired 23 | . . . . . . . . . . . . 5 18 . . . . . . . . . . . . . Allies Hacked 4 | . . . . . . . . . . . . . 1 . . . . . . 3 . . . . . . Hacks Repelled . | . . . . . . . . . . . . . . . . . . . . . . . . . . . Allies | -11 -10 -10 -9 -9 -8 -8 -7 -7 -7 -7 -6 -6 -6 -6 -6 -6 -5 -5 -5 -5 -4 -4 -4 -3 -3 -2 -------- Run | Scr Mat Min Mat Min Mat Gar Fac Gar Fac Gar Fac Gar Ext Cet Arc Hub Fac Was Fac Gar Fac Gar Fac Res Tes Res Total Allies 83 | . . 3 . . . . . . 3 3 . 11 30 . . . . 19 . . . 6 8 . . . Largest Group 19 | . . 3 1 . . . . . 1 1 . 5 5 3 . . . 19 13 11 . 1 2 . . . Highest-Rated Group 696 | . . 40 16 . . . . . 32 32 . 70 139 105 . . . 696 520 455 . 56 129 . . . Highest-Rated Ally 129 | . . 16 16 . . . . . 32 32 . 32 37 37 . . . 50 50 50 . 56 129 . . . Total Orders 2 | . . . . . . . . . . . . . 1 . . . . . . . . . 1 . . . STAY 1 | . . . . . . . . . . . . . 1 . . . . . . . . . . . . . AID 1 | . . . . . . . . . . . . . . . . . . . . . . . 1 . . . Ally Attacks 395 | . . 25 3 . . . . . 9 1 . 30 97 7 . . . 97 2 96 . 9 19 . . . Total Damage 10559 | . . 203 34 . . . . . 491 13 . 540 1989 209 . . . 3607 280 2184 . 361 648 . . . Kills 51 | . . 7 1 . . . . . 2 . . 3 13 2 . . . 11 2 7 . 1 2 . . . Allies Corrupted . | . . . . . . . . . . . . . . . . . . . . . . . . . . . Allies Melted 1 | . . . . . . . . . . . . . . . 1 . . . . . . . . . . . Intel | -11 -10 -10 -9 -9 -8 -8 -7 -7 -7 -7 -6 -6 -6 -6 -6 -6 -5 -5 -5 -5 -4 -4 -4 -3 -3 -2 ------- Run | Scr Mat Min Mat Min Mat Gar Fac Gar Fac Gar Fac Gar Ext Cet Arc Hub Fac Was Fac Gar Fac Gar Fac Res Tes Res Robot Analysis Total . | . . . . . . . . . . . . . . . . . . . . . . . . . . . Derelict Logs Recovered 4 | . . 2 . 2 . . . . . . . . . . . . . . . . . . . . . . Drone Launches . | . . . . . . . . . . . . . . . . . . . . . . . . . . . Drone Recoveries . | . . . . . . . . . . . . . . . . . . . . . . . . . . . Exploration | -11 -10 -10 -9 -9 -8 -8 -7 -7 -7 -7 -6 -6 -6 -6 -6 -6 -5 -5 -5 -5 -4 -4 -4 -3 -3 -2 ------------- Run | Scr Mat Min Mat Min Mat Gar Fac Gar Fac Gar Fac Gar Ext Cet Arc Hub Fac Was Fac Gar Fac Gar Fac Res Tes Res Turns Passed 22964 | 4 903 896 1859 1349 234 1465 187 622 699 696 87 1846 1570 666 123 122 533 536 201 854 81 929 3011 765 1543 1183 Spaces Moved 9705 | 1 437 541 749 467 71 516 68 205 221 194 33 581 558 193 56 72 207 308 118 423 48 380 1656 324 804 474 Core 66 | . . . . . . . . . . . . . . . . . . . . . . . . . . 66 Treads 7007 | 1 437 541 749 467 71 516 68 205 221 194 33 529 . 40 56 72 207 308 118 423 48 380 85 100 804 334 Legs 1650 | . . . . . . . . . . . . 52 558 153 . . . . . . . . 619 194 . 74 Wheels 982 | . . . . . . . . . . . . . . . . . . . . . . . 952 30 . . Hover . | . . . . . . . . . . . . . . . . . . . . . . . . . . . Flight . | . . . . . . . . . . . . . . . . . . . . . . . . . . . Fastest Speed 50 | 160 160 160 160 260 260 260 260 260 260 260 260 200 200 160 160 160 160 160 160 160 160 155 120 120 145 50 Average Speed 184 | 160 160 160 215 260 260 260 260 260 260 260 260 254 200 193 160 160 165 160 160 160 160 157 135 150 147 135 Slowest Speed 283 | 160 160 160 260 260 260 260 260 260 260 260 260 260 201 283 160 160 260 160 160 160 160 160 252 252 245 245 Overloaded Moves . | . . . . . . . . . . . . . . . . . . . . . . . . . . . Propulsion Burnouts . | . . . . . . . . . . . . . . . . . . . . . . . . . . . Robots Hopped . | . . . . . . . . . . . . . . . . . . . . . . . . . . . Cave-ins Triggered 2 | . . . . . . . . . . . . . 2 . . . . . . . . . . . . . Exploration Rate (%) 42 | 2 84 97 73 98 14 49 2 43 9 38 2 67 65 56 70 12 5 88 4 69 1 59 38 12 65 14 Regions Visited 26 Branch Regions 7 Pre-discovered Areas 2 | . . 1 . 1 . . . . . . . . . . . . . . . . . . . . . . Known Exits Taken 10 | . 1 . 1 1 1 . 1 . 1 . 1 . . . . 1 . . 1 . 1 . . . . . Unknown Exits Taken 8 | 1 . 1 . . . . . . . . . . 1 1 1 . . . . . . . 1 1 1 . Scrap Searched 3 | . . 2 . 1 . . . . . . . . . . . . . . . . . . . . . . Spaces Dug 40 | . . . . . . . . . . . . . 17 . . . . . . . . . 8 8 5 2 Terrain Destroyed 272 | . . 6 48 . . 25 . 36 . 7 . 31 18 22 . . . . . 11 . 19 10 32 5 2 Melee 40 | . . . . . . . . . . . . . 17 . . . . . . . . . 8 8 5 2 Projectile 20 | . . . . . . . . . . . . 4 1 8 . . . . . . . 5 2 . . . AOE 211 | . . 6 48 . . 25 . 36 . 7 . 27 . 13 . . . . . 11 . 14 . 24 . . Terrain Rammed . | . . . . . . . . . . . . . . . . . . . . . . . . . . . Walls Destroyed . | . . . . . . . . . . . . . . . . . . . . . . . . . . . Machines Disabled . | . . . . . . . . . . . . . . . . . . . . . . . . . . . Actions | -11 -10 -10 -9 -9 -8 -8 -7 -7 -7 -7 -6 -6 -6 -6 -6 -6 -5 -5 -5 -5 -4 -4 -4 -3 -3 -2 --------- Run | Scr Mat Min Mat Min Mat Gar Fac Gar Fac Gar Fac Gar Ext Cet Arc Hub Fac Was Fac Gar Fac Gar Fac Res Tes Res Total 13150 | 6 538 571 903 566 103 596 77 260 304 335 34 845 899 343 74 77 350 343 130 549 51 567 2299 505 1070 755 Wait 1035 | . 11 27 50 77 5 5 4 . 37 56 . 25 67 21 . . 97 4 . 69 . 56 294 30 60 40 Move 9685 | . 436 540 748 466 71 515 68 204 221 193 33 580 556 192 55 71 207 307 117 422 48 379 1655 324 803 474 Hop . | . . . . . . . . . . . . . . . . . . . . . . . . . . . Pick Up 300 | . 15 1 22 1 7 10 1 6 1 7 . 21 13 20 5 . 9 4 3 7 1 7 50 23 29 37 Fast Attach 64 | . 1 . 1 . . . . 1 1 4 . 1 . 1 . . 1 5 1 1 1 3 15 . 21 6 Attach 185 | 2 2 . 2 1 3 2 1 1 2 4 1 14 9 14 2 3 4 . . 1 1 9 29 30 17 31 Detach 14 | . . . . . . . . . . 1 . 1 . . . . . 1 . . . . 4 3 4 . Swap 261 | . 8 1 17 2 3 10 2 7 10 12 . 26 28 12 1 3 5 2 3 15 . 18 47 6 13 10 Drop 228 | 4 7 1 15 1 3 10 1 5 4 10 . 4 14 4 2 . 1 9 5 8 . 4 47 6 43 20 Fire 600 | . 58 1 48 18 11 38 . 28 24 19 . 61 30 79 5 . 17 7 . 22 . 55 43 7 14 15 Melee 491 | . . . . . . . . . 4 21 . 7 30 . 4 . 9 4 1 4 . 36 115 76 63 117 Ram 4 | . . . . . . . . . . . . . . . . . . . . . . . . . . 4 Kick 2 | . . . . . . . . . . . . . 1 . . . . . . . . . . . . 1 Crush . | . . . . . . . . . . . . . . . . . . . . . . . . . . . Escape Stasis 55 | . . . . . . 6 . 8 . 8 . 24 6 . . . . . . . . . . . 3 . Rewire 226 | . . . . . . . . . . . . 81 145 . . . . . . . . . . . . . Trap . | . . . . . . . . . . . . . . . . . . . . . . . . . . . Miscellaneous . | . . . . . . . . . . . . . . . . . . . . . . . . . . . Route ------- -11/Scrapyard -10/Materials (discovered 3 exits: *Mat x2 / *Min) -10/Mines (discovered 2 exits: *Mat x2) -9/Materials (discovered 5 exits: *Mat x3 / *Min x2) -9/Mines (discovered 3 exits: *Mat x2 / [*Zio]) -8/Materials -8/Garrison (discovered 2 exits: *Fac x2) -7/Factory (discovered 2 exits: *Fac / Gar) -7/Garrison -7/Factory -7/Garrison -6/Factory -6/Garrison (discovered 3 exits: *Ext x3) -6/Extension (discovered 2 exits: *Fac / *Cet) -6/Cetus (discovered 2 exits: *Fac / [*Arc]) -6/Archives -6/Hub_04(d) -5/Factory -5/Waste -5/Factory (discovered 3 exits: *Upp x2 / Gar) -5/Garrison (discovered 2 exits: *Fac x2) -4/Factory -4/Garrison (discovered 2 exits: *Fac x2) -4/Factory (discovered 3 exits: *Res / *Upp x2) -3/Research -3/Testing -2/Research History --------- Turn | Location | Event 5 | -11/Scrapyard | Discovered new exit (range 0) 5 | -11/Scrapyard | Entered Materials 254 | -10/Materials | Discovered new exit (range 16) 313 | -10/Materials | Build established: Mutant 654 | -10/Materials | Discovered new exit (range 8) 796 | -10/Materials | Identified exit to Mines 908 | -10/Materials | Entered Mines 960 | -10/Mines | Assisted by bots powering up and referring to "LRC-V3" 974 | -10/Mines | Learned location of Zion (-7) 992 | -10/Mines | Discovered new exit (range 9) 1042 | -10/Mines | Received a Rocket Launcher from a helpful Derelict 1072 | -10/Mines | Discovered new exit (range 10) 1426 | -10/Mines | Learned Materials garrison access intel 1804 | -10/Mines | Entered Materials 1804 | -9/Materials | Accompanied by 1 ally 1804 | -9/Materials | Evolved 2 slots: Propulsion x1, Utility x1 1931 | -9/Materials | Identified exit to Mines 2174 | -9/Materials | Discovered new exit (range 16) 2386 | -9/Materials | Discovered new exit (range 5) 2486 | -9/Materials | Identified exit to Materials 3663 | -9/Materials | Entered Mines 3664 | -9/Mines | Assembled infested the area 3769 | -9/Mines | Learned Materials emergency access door positions 4038 | -9/Mines | Discovered exit to Materials (range 5) 4173 | -9/Mines | Found a damaged Exp. Sensor Array with a note attached 4180 | -9/Mines | Found Prototype Device 4731 | -9/Mines | A Derelict revealed a hidden shortcut to a safe place 4851 | -9/Mines | Destroyed 7 combat bots 4861 | -9/Mines | Discovered exit to Materials (range 8) 5012 | -9/Mines | Entered Materials 5012 | -8/Materials | Evolved 2 slots: Propulsion x1, Weapon x1 5014 | -8/Materials | Loaded intel: 1 garrison access location 5246 | -8/Materials | Identified exit to Garrison 5246 | -8/Materials | Entered Garrison 5371 | -8/Garrison | Triggered checkpoint 5435 | -8/Garrison | Destroyed 8 combat bots 5548 | -8/Garrison | Discovered new exit (range 14) 5686 | -8/Garrison | Build established: Scavenger-Gunner 5821 | -8/Garrison | Discovered new exit (range 13) 5871 | -8/Garrison | Installed Relay Interface Framework 5977 | -8/Garrison | Triggered checkpoint 6011 | -8/Garrison | Garrison Relay disabled 6276 | -8/Garrison | Triggered checkpoint 6339 | -8/Garrison | Garrison Relay disabled 6551 | -8/Garrison | Triggered checkpoint 6616 | -8/Garrison | Garrison Relay disabled 6711 | -8/Garrison | Entered Factory 6711 | -7/Factory | Evolved 2 slots: Utility x2 6759 | -7/Factory | Discovered new exit (range 10) 6898 | -7/Factory | Identified exit to Garrison 6898 | -7/Factory | Entered Garrison 7032 | -7/Garrison | Triggered checkpoint 7034 | -7/Garrison | Destroyed 8 combat bots 7270 | -7/Garrison | Discovered new exit (range 14) 7427 | -7/Garrison | Expanded RIF knowledge: Signal Jamming 7520 | -7/Garrison | Entered Factory 8098 | -7/Factory | Garrison activated, responded to threat 8219 | -7/Factory | Identified exit to Garrison 8219 | -7/Factory | Entered Garrison 8232 | -7/Garrison | Expanded RIF knowledge: Zone Cloak 8296 | -7/Garrison | Triggered checkpoint 8414 | -7/Garrison | Garrison Relay disabled 8426 | -7/Garrison | Build established: Bothacker-Mutant 8722 | -7/Garrison | Triggered checkpoint 8760 | -7/Garrison | Triggered checkpoint 8876 | -7/Garrison | Discovered new exit (range 15) 8915 | -7/Garrison | Entered Factory 8915 | -6/Factory | Evolved 2 slots: Propulsion x2 9002 | -6/Factory | Identified exit to Garrison 9002 | -6/Factory | Entered Garrison 9051 | -6/Garrison | Triggered checkpoint 9122 | -6/Garrison | Lost 3 parts (1p1n1w) 9656 | -6/Garrison | Discovered new exit (range 10) 9715 | -6/Garrison | Triggered checkpoint 9764 | -6/Garrison | Garrison Relay disabled 9887 | -6/Garrison | Triggered checkpoint 9963 | -6/Garrison | Triggered checkpoint 10072 | -6/Garrison | Discovered new exit (range 14) 10144 | -6/Garrison | Triggered checkpoint 10188 | -6/Garrison | Garrison Relay disabled 10238 | -6/Garrison | Build established: Bothacker-Tank 10593 | -6/Garrison | Discovered new exit (range 10) 10630 | -6/Garrison | Expanded RIF knowledge: Hotswap 10689 | -6/Garrison | Triggered checkpoint 10772 | -6/Garrison | Garrison Relay disabled 10848 | -6/Garrison | Entered Extension 11013 | -6/Extension | Build established: Botlord-Mutant 11133 | -6/Extension | Repaired Remote Datajack 11216 | -6/Extension | Rescued a captive Derelict 11217 | -6/Extension | Rescued a captive Derelict 11286 | -6/Extension | Rescued a captive Derelict 11455 | -6/Extension | Identified Exp. Sensor Array 11496 | -6/Extension | Rescued a captive Derelict 11497 | -6/Extension | Rescued a captive Derelict 11614 | -6/Extension | Lost 3 parts (1u2w) 11829 | -6/Extension | Crushed by falling debris 11829 | -6/Extension | System corruption reached 10% 11860 | -6/Extension | Lost 3 parts (2u1w) 11863 | -6/Extension | Crushed by falling debris 11866 | -6/Extension | Rescued a captive Derelict 11934 | -6/Extension | Rescued a captive Derelict 11935 | -6/Extension | Rescued a captive Derelict 12321 | -6/Extension | Rescued a captive Derelict 12369 | -6/Extension | Build established: Bothacker-Mutant 12379 | -6/Extension | Discovered new exit (range 10) 12381 | -6/Extension | Discovered new exit (range 6) 12418 | -6/Extension | Entered Cetus 12418 | -6/Cetus | Accompanied by 3 allies 12446 | -6/Cetus | Spotted Cetus Guard 12446 | -6/Cetus | Spotted Cetus Guard 12448 | -6/Cetus | Spotted Cetus Guard 12449 | -6/Cetus | Spotted Cetus Guard 12449 | -6/Cetus | Allies destroyed Cetus Guard 12449 | -6/Cetus | Allies destroyed Cetus Guard 12465 | -6/Cetus | Destroyed Cetus Guard 12475 | -6/Cetus | Destroyed Cetus Guard 12681 | -6/Cetus | Discovered new exit (range 16) 12717 | -6/Cetus | Spotted Cetus Guard 12717 | -6/Cetus | Spotted Cetus Guard 12743 | -6/Cetus | Spotted Cetus Guard 12746 | -6/Cetus | Destroyed Cetus Guard 12755 | -6/Cetus | Spotted Cetus Guard 12773 | -6/Cetus | Core integrity fell below 50% 12775 | -6/Cetus | Destroyed Cetus Guard 12800 | -6/Cetus | Destroyed Cetus Guard 12826 | -6/Cetus | Lost 7 parts (4n1u2w) 12836 | -6/Cetus | Destroyed Cetus Guard 12846 | -6/Cetus | Discovered new exit (range 16) 12858 | -6/Cetus | Met Revision 17 12984 | -6/Cetus | Lost 6 parts (2n2u2w) 13084 | -6/Cetus | Entered Archives 13129 | -6/Archives | Met Zhirov 13135 | -6/Archives | Reinforcements dispatched to Archives 13147 | -6/Archives | Discovered new exit (range 15) 13180 | -6/Archives | Reinforcements dispatched to Archives 13182 | -6/Archives | Zhirov warped through subspace 13200 | -6/Archives | Zhirov detonated Archives 13207 | -6/Archives | Entered Hub_04(d) 13231 | -6/Hub_04(d) | Lost 4 parts (1p2n1w) 13268 | -6/Hub_04(d) | Build established: Scavenger-Mutant 13284 | -6/Hub_04(d) | Discovered new exit (range 16) 13315 | -6/Hub_04(d) | Identified exit to Factory 13329 | -6/Hub_04(d) | Entered Factory 13329 | -5/Factory | Evolved 2 slots: Utility x2 13663 | -5/Factory | Repaired Broken Centrium Heavy Treads 13767 | -5/Factory | Garrison activated, responded to threat 13862 | -5/Factory | Sucked down chute 13862 | -5/Factory | Entered Waste 13935 | -5/Waste | Spotted C-40 Crusher 13946 | -5/Waste | Spotted C-40 Crusher 13951 | -5/Waste | Spotted C-40 Crusher 13980 | -5/Waste | Spotted C-40 Crusher 13985 | -5/Waste | Spotted C-40 Crusher 14026 | -5/Waste | Discovered new exit (range 16) 14036 | -5/Waste | Spotted C-40 Crusher 14079 | -5/Waste | Warlord forces began an assault 14089 | -5/Waste | Allies destroyed C-40 Crusher 14091 | -5/Waste | Allies destroyed C-40 Crusher 14136 | -5/Waste | Allies destroyed C-40 Crusher 14192 | -5/Waste | Allies destroyed C-40 Crusher 14398 | -5/Waste | Entered Factory 14398 | -5/Factory | Accompanied by 13 allies 14418 | -5/Factory | Identified exit to Upper Caves 14564 | -5/Factory | Identified exit to Garrison 14599 | -5/Factory | Entered Garrison 14599 | -5/Garrison | Accompanied by 11 allies 14607 | -5/Garrison | Expanded RIF knowledge: Threat Obfuscation 14650 | -5/Garrison | Triggered checkpoint 14685 | -5/Garrison | Garrison Relay disabled 14770 | -5/Garrison | Triggered checkpoint 14794 | -5/Garrison | Triggered checkpoint 14842 | -5/Garrison | Triggered checkpoint 14873 | -5/Garrison | Build established: Botlord-Mutant 14916 | -5/Garrison | Triggered checkpoint 14985 | -5/Garrison | Garrison Relay disabled 15145 | -5/Garrison | Discovered new exit (range 13) 15272 | -5/Garrison | Triggered checkpoint 15374 | -5/Garrison | Garrison Relay disabled 15440 | -5/Garrison | Discovered new exit (range 9) 15453 | -5/Garrison | Entered Factory 15453 | -4/Factory | Evolved 2 slots: Utility x2 15534 | -4/Factory | Identified exit to Garrison 15534 | -4/Factory | Entered Garrison 15725 | -4/Garrison | Triggered checkpoint 15781 | -4/Garrison | Garrison Relay disabled 15858 | -4/Garrison | Triggered checkpoint 15875 | -4/Garrison | Spotted B-86 Titan 15920 | -4/Garrison | Destroyed B-86 Titan 15920 | -4/Garrison | Triggered checkpoint 15923 | -4/Garrison | Triggered checkpoint 16023 | -4/Garrison | Lost 4 parts (2u2w) 16060 | -4/Garrison | Triggered checkpoint 16282 | -4/Garrison | Discovered new exit (range 13) 16419 | -4/Garrison | Discovered new exit (range 15) 16455 | -4/Garrison | Expanded RIF knowledge: Patrol Navigation 16463 | -4/Garrison | Entered Factory 16664 | -4/Factory | Discovered new exit (range 14) 16836 | -4/Factory | Found Prototype Processor 16838 | -4/Factory | Identified Exp. Melee Analysis Suite 17805 | -4/Factory | P-70 Sage assimilated allied G-67 Veteran 18008 | -4/Factory | Spotted B-86 Titan 18533 | -4/Factory | Found Hvy. Reactive Plating 18751 | -4/Factory | Repaired Plasma Lance 18757 | -4/Factory | Discovered new exit (range 15) 19104 | -4/Factory | Identified exit to Upper Caves 19307 | -4/Factory | Discovered new exit (range 12) 19474 | -4/Factory | Entered Research 19474 | -3/Research | Evolved 2 slots: Power x1, Utility x1 19492 | -3/Research | Discovered new exit (range 92) 19652 | -3/Research | Found Prototype Processor 19653 | -3/Research | Identified Exp. Signal Interpreter 19724 | -3/Research | Garrison activated, responded to threat 19787 | -3/Research | Spotted B-86 Titan 19907 | -3/Research | Destroyed B-86 Titan 19935 | -3/Research | Lost 19 parts (3p7n8u1w) 20111 | -3/Research | Cargo convoy interrupted 20224 | -3/Research | First assault squad dispatched 20239 | -3/Research | Entered Testing 20273 | -3/Testing | Found Prototype Device 20274 | -3/Testing | Identified Exp. Hardlight Generator 20561 | -3/Testing | Found Prototype Energy Gun 20562 | -3/Testing | Identified Warp Gun 20605 | -3/Testing | Found Prototype Device 20605 | -3/Testing | Identified Exp. Thermal Shield 20744 | -3/Testing | Found Tachyon Dispersion Ray 20759 | -3/Testing | Protovariant out of control (PL-N7H6BA89OZ) 20759 | -3/Testing | Unleashed a protovariant (PL-N7H6BA89OZ) 20822 | -3/Testing | Found Hvy. Regenerative Plating 20831 | -3/Testing | Found SHELL Armor 20834 | -3/Testing | Found Lgt. Regenerative Plating 20863 | -3/Testing | Spotted Striker 20864 | -3/Testing | Spotted Striker 20878 | -3/Testing | Found Prototype Device 20878 | -3/Testing | Identified AEGIS Remote Shield 21006 | -3/Testing | Found Potential Cannon 21033 | -3/Testing | Build established: Bothacker-Mutant 21185 | -3/Testing | Found Prototype Energy Gun 21185 | -3/Testing | Identified Hyp. EM Gauss Rifle 21337 | -3/Testing | Spotted Investigator 21339 | -3/Testing | Scanned by Researcher 21353 | -3/Testing | System corruption reached 10% 21381 | -3/Testing | Destroyed Investigator 21405 | -3/Testing | Found Prototype Launcher 21406 | -3/Testing | Identified Containment Facilitator 21413 | -3/Testing | Lost 4 parts (3u1w) 21517 | -3/Testing | Discovered new exit (range 11) 21600 | -3/Testing | Found Enh. Force Lance 21611 | -3/Testing | Found Prototype Device 21611 | -3/Testing | Identified Exp. Shield Generator 21632 | -3/Testing | Build established: Scavenger-Mutant 21782 | -3/Testing | Entered Research 21782 | -2/Research | Evolved 2 slots: Utility x2 22271 | -2/Research | System corruption reached 10% 22415 | -2/Research | Build established: Mutant 22419 | -2/Research | Lost 4 parts (1n3u) 22427 | -2/Research | Destroyed 7 combat bots 22565 | -2/Research | Spotted B-90 Cyclops 22666 | -2/Research | Destroyed B-90 Cyclops 22790 | -2/Research | Lost 16 parts (3p5n7u1w) 22835 | -2/Research | System corruption reached 30% 22884 | -2/Research | Core integrity fell below 50% 22926 | -2/Research | Found Prototype Slashing Weapon 22927 | -2/Research | Identified Nanosword 22928 | -2/Research | Lost 13 parts (1p4n6u2w) 22934 | -2/Research | Core integrity fell below 20% 22965 | -2/Research | Destroyed by G-73 Enforcer with Phase Gun Last Messages --------------- Slammed into W-44 Eye. Destabilizing: System corrupted (+1). Slammed into W-44 Eye. U-05 Engineer lays Concrete. ODK9NQME3LTI5ZAOVM PZGSPPR2AERWGLKD8I Acquired Prototype Slashing Weapon. Identified Nanosword. Terminal disabled. P-80 Master destroyed. Acquired Lgt. Particle Reactor. System corrupted: Matter fused (-5). K-01 Serf collects debris. Destroyed Lgt. Particle Reactor. Relay Coupler [Swarmer] destroyed. K-01 Serf collects debris. Destroyed Unknown Hover Unit. Lgt. Particle Reactor destroyed. K-01 Serf collects debris. P-80 Master destroyed. Acquired 15 matter. Map ----- +----------------------------------------------------+ | ?????????????????????????????????????????????????? | | ?????????????????????????????????????????????????? | | ?????????????????????????????????????????????????? | | ?????????????????????????????????????????????????? | | ?????????????????????????????????????????????????? | | ?????????????????????????????????????????????????? | | ?????????????????????????????????????????????????? | | ?????????????????????????????????????????????????? | | ?????????????????????????????????????????????????? | | ?????????????????????????????????????????????????? | | ??????????????????????????! ?????????????????????? | | ?????????????????????????? ?????????????????????? | | ?????????????????????????? ?????????????????????? | | ?????????????????????????? ?????????????????????? | | ?????????????????????????? ?????????????????????? | | ?????????????????????????? ?????????????????????? | | ????????????????????######/###???????????????????? | | ????????????????????# g ]#???????????????????? | | ????????????????????# #???????????????????? | | ????????????????????#] "" #???????????????????? | | ????????????????????# "" #???????????????????? | | ????????????????????# "T = #???????????????????? | | ????????????????????# " #???????????????????? | | ????????????????????# " #???????????????????? | | ????????????????????# = #???????????????????? | | ????????????????????# @k!!#???#???????????????? | | ????????????????????######/##### #### ????????? | | ??????????????????????# !%= ????????? | | ??????????????????????# ! w ????????? | | ??????????????????????# ????????? | | ??????????????????????# ????????? | | ??????????????????????# ########## ????????? | | ??????????????????????# #?????????????????????? | | ??????????????????????# #?????????????????????? | | ??????????????????????# #?????????????????????? | | ??????????????????????# #?????????????????????? | | ??????????????????????# #?????????????????????? | | ??????????????????????# #?????????????????????? | | ????????????????""????# #?????????????????????? | | ????????????????""""??# #?????????????????????? | | ????????????# """"" # #?????????????????????? | | ????????????# + #?????????????????????? | | ????????????# # #?????????????????????? | | ????????????# ??# #########?????????????? | | ????????????# ????# ??????????? | | ????????????# ??????# #########?????????????? | | ????????????##????????# #?????????????????????? | | ??????????????????????# #?????????????????????? | | ??????????????????????# #?????????????????????? | | ??????????????????????# #?????????????????????? | +----------------------------------------------------+ Best States ------------- Heat Dissipation 70 Energy Generation 54 Energy Capacity 1330 Matter Stores 300 Matter Capacity 300 Sight Range 20 Robot Scan Range 20 Terrain Scan Range 20 Terrain Scan Density 210 Jamming Range 12 Power Amplification 30 Armor Coverage 2100 Resistance: KI 40 Resistance: TH 30 Propulsion Shielding 90 Weapon Shielding 66 Melee Speed Boost 50 Phase Shifting 15 Evasion (%) 60 Targeting Accuracy 8 Target Analysis 8 Recoil Reduction 6 Offensive Hacking 14 Defensive Hacking 14 Relay Coupler Types 131 Relay Coupler Value 5 Item Schematics ----------------- None Robot Schematics ------------------ None Fabricated ------------ Nothing Alien Tech Used ----------------- None Achievements -------------- Rampage Challenges ------------ None Game ------ Seed MolecularCouplerPod Manual? 0 Play Time 03:14:50 Cumulative 256.9 hours Start 2021.07.31 @ 22:47:02 End 2021.08.01 @ 02:11:45 Sessions 1 Manual Loads 0 Difficulty Rogue Special Mode None Game No. 307 Rogue 307 Adventurer 0 Explorer 0 Win Type - Total 4 Types 4/0/0/0/0/0/0/0/0 Lore% 65 Gallery% 82 Achievement% 62 Wizard Run 0 Options --------- ASCII 0 Keyboard 0 Movement Mouse Keybinds 1 Fullscreen 2 Font 24/Smallcaps Map View 76x50 Tactical HUD 1 Map Filters NONE Filters NONE Steam 1 RUN: fe416e31-483b-4ce0-9c43-c929dfafc289